[Event "Titled Tuesday Blitz February 14 Late 2023"]
[White "Gerbelli Neto, Eduardo"]
[Black "Danielyan, Vahe"]
[WhiteFideId "2103281"]
[BlackFideId "13304828"]
[WhiteElo "2114"]
[BlackElo "2346"]
[Result "1/2-1/2"]
[Round "03"]
[TimeControl "180+2"]
[Date "2023.02.14"]
[WhiteClock "0:00:15"]
[BlackClock "0:01:21"]

1. e4 {[%clk 0:03:00]}  d5 {[%clk 0:02:59]} 2. exd5 {[%clk 0:03:00]}  Qxd5 {[%clk 0:03:00]} 3. Nc3 {[%clk 0:03:00]}  Qe5+ {[%clk 0:03:01]} 4. Be2 {[%clk 0:02:59]}  Bg4 {[%clk 0:03:00]} 5. d4 {[%clk 0:02:56]}  Bxe2 {[%clk 0:03:01]} 6. Ngxe2 {[%clk 0:02:55]}  Qa5 {[%clk 0:03:01]} 7. O-O {[%clk 0:02:54]}  Nf6 {[%clk 0:03:02]} 8. b4 {[%clk 0:02:51]}  Qh5 {[%clk 0:03:01]} 9. Ng3 {[%clk 0:02:49]}  Qxd1 {[%clk 0:03:01]} 10. Rxd1 {[%clk 0:02:48]}  e6 {[%clk 0:02:53]} 11. Nb5 {[%clk 0:02:43]}  Na6 {[%clk 0:02:53]} 12. a3 {[%clk 0:02:32]}  c6 {[%clk 0:02:52]} 13. Nc3 {[%clk 0:02:32]}  O-O-O {[%clk 0:02:53]} 14. Bf4 {[%clk 0:02:29]}  Bd6 {[%clk 0:02:46]} 15. Bxd6 {[%clk 0:02:28]}  Rxd6 {[%clk 0:02:47]} 16. Nge4 {[%clk 0:02:27]}  Nxe4 {[%clk 0:02:44]} 17. Nxe4 {[%clk 0:02:28]}  Rd7 {[%clk 0:02:45]} 18. Rd3 {[%clk 0:02:11]}  Rhd8 {[%clk 0:02:44]} 19. Rad1 {[%clk 0:02:11]}  Nc7 {[%clk 0:02:41]} 20. c4 {[%clk 0:02:07]}  e5 {[%clk 0:02:34]} 21. d5 {[%clk 0:01:36]}  cxd5 {[%clk 0:02:35]} 22. Nc5 {[%clk 0:01:37]}  Rd6 {[%clk 0:02:31]} 23. Ne4 {[%clk 0:01:34]}  R6d7 {[%clk 0:02:26]} 24. Nc5 {[%clk 0:01:34]}  d4 {[%clk 0:02:11]} 25. Nxd7 {[%clk 0:01:33]}  Kxd7 {[%clk 0:02:12]} 26. f4 {[%clk 0:01:29]}  f6 {[%clk 0:02:12]} 27. fxe5 {[%clk 0:01:28]}  fxe5 {[%clk 0:02:13]} 28. Rh3 {[%clk 0:01:11]}  h6 {[%clk 0:02:13]} 29. Rg3 {[%clk 0:01:11]}  Ne6 {[%clk 0:02:11]} 30. Rf3 {[%clk 0:00:59]}  Ke7 {[%clk 0:02:10]} 31. Rf5 {[%clk 0:00:54]}  e4 {[%clk 0:02:05]} 32. Kf2 {[%clk 0:00:31]}  g6 {[%clk 0:01:57]} 33. Ra5 {[%clk 0:00:29]}  a6 {[%clk 0:01:56]} 34. g3 {[%clk 0:00:29]}  e3+ {[%clk 0:01:54]} 35. Ke2 {[%clk 0:00:28]}  Rf8 {[%clk 0:01:54]} 36. b5 {[%clk 0:00:17]}  Rf2+ {[%clk 0:01:50]} 37. Kd3 {[%clk 0:00:17]}  axb5 {[%clk 0:01:45]} 38. Rxb5 {[%clk 0:00:16]}  Ra2 {[%clk 0:01:34]} 39. Rxb7+ {[%clk 0:00:16]}  Kd6 {[%clk 0:01:34]} 40. Rb6+ {[%clk 0:00:15]}  Kd7 {[%clk 0:01:34]} 41. Rxe6 {[%clk 0:00:10]}  Kxe6 {[%clk 0:01:35]} 42. Kxd4 {[%clk 0:00:10]}  Rxa3 {[%clk 0:01:35]} 43. Re1 {[%clk 0:00:10]}  Ra2 {[%clk 0:01:31]} 44. Rxe3+ {[%clk 0:00:11]}  Kd7 {[%clk 0:01:29]} 45. h4 {[%clk 0:00:12]}  Ra4 {[%clk 0:01:26]} 46. Kd5 {[%clk 0:00:12]}  Ra2 {[%clk 0:01:25]} 47. Ke5 {[%clk 0:00:11]}  Rf2 {[%clk 0:01:25]} 48. Rd3+ {[%clk 0:00:11]}  Ke7 {[%clk 0:01:25]} 49. c5 {[%clk 0:00:11]}  Rf5+ {[%clk 0:01:24]} 50. Kd4 {[%clk 0:00:11]}  Kd7 {[%clk 0:01:25]} 51. Kc4+ {[%clk 0:00:10]}  Kc7 {[%clk 0:01:24]} 52. Rd6 {[%clk 0:00:09]}  g5 {[%clk 0:01:24]} 53. hxg5 {[%clk 0:00:09]}  Rxg5 {[%clk 0:01:22]} 54. Rxh6 {[%clk 0:00:08]}  Rxg3 {[%clk 0:01:22]} 55. Kd5 {[%clk 0:00:09]}  Rg5+ {[%clk 0:01:22]} 56. Kc4 {[%clk 0:00:09]}  Rg4+ {[%clk 0:01:22]} 57. Kb5 {[%clk 0:00:09]}  Rg7 {[%clk 0:01:21]} 58. Rc6+ {[%clk 0:00:09]}  Kb7 {[%clk 0:01:21]} 59. Rb6+ {[%clk 0:00:10]}  Kc7 {[%clk 0:01:21]} 60. Ra6 {[%clk 0:00:11]}  Rg1 {[%clk 0:01:21]} 61. Ra7+ {[%clk 0:00:11]}  Kb8 {[%clk 0:01:21]} 62. Rh7 {[%clk 0:00:11]}  Rg6 {[%clk 0:01:20]} 63. c6 {[%clk 0:00:11]}  Rg1 {[%clk 0:01:20]} 64. Kb6 {[%clk 0:00:11]}  Rb1+ {[%clk 0:01:19]} 65. Kc5 {[%clk 0:00:12]}  Kc8 {[%clk 0:01:18]} 66. Kd6 {[%clk 0:00:12]}  Rd1+ {[%clk 0:01:18]} 67. Kc5 {[%clk 0:00:12]}  Rc1+ {[%clk 0:01:19]} 68. Kb6 {[%clk 0:00:13]}  Rb1+ {[%clk 0:01:19]} 69. Kc5 {[%clk 0:00:13]}  Rc1+ {[%clk 0:01:20]} 70. Kd6 {[%clk 0:00:14]}  Rd1+ {[%clk 0:01:20]} 71. Kc5 {[%clk 0:00:15]}  Rc1+ {[%clk 0:01:21]} 1/2-1/2


[Site "https://www.chess.com"]

[Event "Titled Tuesday Blitz February 14 Late 2023"]
[White "Pinheiro, Iung Alicio de O."]
[Black "Abdyzhaparov, Aidar"]
[WhiteFideId "2104350"]
[BlackFideId "13800361"]
[WhiteElo "2306"]
[BlackElo "1978"]
[Result "0-1"]
[Round "03"]
[TimeControl "180+2"]
[Date "2023.02.14"]
[WhiteClock "0:00:05"]
[BlackClock "0:00:15"]

1. e4 {[%clk 0:03:00]}  d6 {[%clk 0:03:00]} 2. d4 {[%clk 0:02:59]}  Nf6 {[%clk 0:03:01]} 3. Nc3 {[%clk 0:02:58]}  e5 {[%clk 0:03:02]} 4. Nf3 {[%clk 0:02:57]}  Nbd7 {[%clk 0:03:02]} 5. Rg1 {[%clk 0:02:58]}  Be7 {[%clk 0:03:02]} 6. g4 {[%clk 0:02:58]}  g6 {[%clk 0:03:01]} 7. g5 {[%clk 0:02:57]}  Nh5 {[%clk 0:03:01]} 8. Be3 {[%clk 0:02:57]}  c6 {[%clk 0:03:01]} 9. Qd2 {[%clk 0:02:58]}  O-O {[%clk 0:03:01]} 10. O-O-O {[%clk 0:02:57]}  b5 {[%clk 0:03:00]} 11. dxe5 {[%clk 0:02:57]}  Nxe5 {[%clk 0:02:55]} 12. Nxe5 {[%clk 0:02:40]}  dxe5 {[%clk 0:02:56]} 13. Qe1 {[%clk 0:02:30]}  Qc7 {[%clk 0:02:44]} 14. Kb1 {[%clk 0:01:59]}  Be6 {[%clk 0:02:40]} 15. Be2 {[%clk 0:01:54]}  Nf4 {[%clk 0:02:39]} 16. Bg4 {[%clk 0:01:49]}  Bxg4 {[%clk 0:02:21]} 17. Rxg4 {[%clk 0:01:48]}  Rfd8 {[%clk 0:02:15]} 18. Rg1 {[%clk 0:01:36]}  Bb4 {[%clk 0:02:06]} 19. Rxd8+ {[%clk 0:01:16]}  Rxd8 {[%clk 0:02:05]} 20. Bxf4 {[%clk 0:01:15]}  exf4 {[%clk 0:02:06]} 21. a3 {[%clk 0:01:16]}  Bc5 {[%clk 0:02:04]} 22. e5 {[%clk 0:00:59]}  Bd4 {[%clk 0:01:52]} 23. e6 {[%clk 0:00:57]}  fxe6 {[%clk 0:01:40]} 24. Qxe6+ {[%clk 0:00:56]}  Qf7 {[%clk 0:01:40]} 25. Qxc6 {[%clk 0:00:52]}  Bxf2 {[%clk 0:01:35]} 26. Rf1 {[%clk 0:00:52]}  Bd4 {[%clk 0:01:22]} 27. Nxb5 {[%clk 0:00:48]}  Bb6 {[%clk 0:01:17]} 28. Nc3 {[%clk 0:00:37]}  f3 {[%clk 0:01:15]} 29. Ne4 {[%clk 0:00:37]}  f2 {[%clk 0:01:07]} 30. Nf6+ {[%clk 0:00:33]}  Kh8 {[%clk 0:01:07]} 31. Qf3 {[%clk 0:00:28]}  Qe7 {[%clk 0:00:56]} 32. Rxf2 {[%clk 0:00:24]}  Qe1+ {[%clk 0:00:40]} 33. Ka2 {[%clk 0:00:24]}  Qe6+ {[%clk 0:00:24]} 34. b3 {[%clk 0:00:21]}  Bxf2 {[%clk 0:00:21]} 35. Qxf2 {[%clk 0:00:17]}  Qf5 {[%clk 0:00:21]} 36. Qe2 {[%clk 0:00:13]}  Rc8 {[%clk 0:00:17]} 37. Kb2 {[%clk 0:00:12]}  Qxg5 {[%clk 0:00:16]} 38. Ne4 {[%clk 0:00:11]}  Qe5+ {[%clk 0:00:16]} 39. Ka2 {[%clk 0:00:07]}  Re8 {[%clk 0:00:16]} 40. Qa6 {[%clk 0:00:03]}  Qxe4 {[%clk 0:00:16]} 41. Qf6+ {[%clk 0:00:03]}  Kg8 {[%clk 0:00:16]} 42. Qc3 {[%clk 0:00:04]}  Qe5 {[%clk 0:00:15]} 43. Qc4+ {[%clk 0:00:04]}  Qe6 {[%clk 0:00:15]} 44. Qc3 {[%clk 0:00:05]}  Rc8 {[%clk 0:00:15]} 45. Qd3 {[%clk 0:00:05]}  Qf5 {[%clk 0:00:15]} 0-1


[Site "https://www.chess.com"]

[Event "Titled Tuesday Blitz February 14 Late 2023"]
[White "Benmesbah, Natacha"]
[Black "Djokic, Mihailo"]
[WhiteFideId "642002"]
[BlackFideId "976440"]
[WhiteElo "2261"]
[BlackElo "2192"]
[Result "0-1"]
[Round "03"]
[TimeControl "180+2"]
[Date "2023.02.14"]
[WhiteClock "0:00:59"]
[BlackClock "0:01:46"]

1. e4 {[%clk 0:03:00]}  c5 {[%clk 0:02:58]} 2. Nf3 {[%clk 0:02:58]}  d6 {[%clk 0:02:46]} 3. Bb5+ {[%clk 0:02:57]}  Bd7 {[%clk 0:02:45]} 4. Bxd7+ {[%clk 0:02:57]}  Qxd7 {[%clk 0:02:45]} 5. O-O {[%clk 0:02:56]}  Nc6 {[%clk 0:02:44]} 6. c3 {[%clk 0:02:56]}  Nf6 {[%clk 0:02:42]} 7. Re1 {[%clk 0:02:56]}  e6 {[%clk 0:02:42]} 8. d4 {[%clk 0:02:56]}  cxd4 {[%clk 0:02:42]} 9. cxd4 {[%clk 0:02:57]}  d5 {[%clk 0:02:42]} 10. e5 {[%clk 0:02:58]}  Ne4 {[%clk 0:02:41]} 11. Nbd2 {[%clk 0:02:58]}  Nxd2 {[%clk 0:02:41]} 12. Bxd2 {[%clk 0:02:59]}  Bb4 {[%clk 0:02:41]} 13. Rc1 {[%clk 0:02:39]}  Bxd2 {[%clk 0:02:39]} 14. Qxd2 {[%clk 0:02:39]}  h6 {[%clk 0:02:39]} 15. b4 {[%clk 0:02:28]}  O-O {[%clk 0:02:37]} 16. b5 {[%clk 0:02:25]}  Ne7 {[%clk 0:02:34]} 17. a4 {[%clk 0:02:21]}  Rfc8 {[%clk 0:02:33]} 18. Rxc8+ {[%clk 0:02:19]}  Rxc8 {[%clk 0:02:30]} 19. Rc1 {[%clk 0:02:20]}  Rc4 {[%clk 0:02:28]} 20. g3 {[%clk 0:01:44]}  Rxa4 {[%clk 0:02:23]} 21. Qb2 {[%clk 0:01:25]}  Nf5 {[%clk 0:02:07]} 22. Rc5 {[%clk 0:01:19]}  Qe7 {[%clk 0:01:59]} 23. Qc3 {[%clk 0:01:16]}  g5 {[%clk 0:01:51]} 24. Rc7 {[%clk 0:01:06]}  Qa3 {[%clk 0:01:46]} 25. Qxa3 {[%clk 0:01:01]}  Rxa3 {[%clk 0:01:46]} 26. Rxb7 {[%clk 0:01:01]}  Rxf3 {[%clk 0:01:46]} 27. Rxa7 {[%clk 0:01:01]}  Rb3 {[%clk 0:01:45]} 28. Rb7 {[%clk 0:00:59]}  Nxd4 {[%clk 0:01:45]} 29. b6 {[%clk 0:00:59]}  Nf3+ {[%clk 0:01:45]} 30. Kg2 {[%clk 0:00:59]}  Nxe5 {[%clk 0:01:45]} 31. Rb8+ {[%clk 0:00:58]}  Kg7 {[%clk 0:01:46]} 32. b7 {[%clk 0:00:59]}  Nd7 {[%clk 0:01:46]} 0-1


[Site "https://www.chess.com"]

[Event "Titled Tuesday Blitz February 14 Late 2023"]
[White "Stachanczyk, Jacek"]
[Black "Baghdasaryan, Vahe"]
[WhiteFideId "1116657"]
[BlackFideId "13303139"]
[WhiteElo "2147"]
[BlackElo "2257"]
[Result "0-1"]
[Round "03"]
[TimeControl "180+2"]
[Date "2023.02.14"]
[WhiteClock "0:00:15"]
[BlackClock "0:00:49"]

1. e4 {[%clk 0:03:00]}  c5 {[%clk 0:02:58]} 2. Nf3 {[%clk 0:02:58]}  e6 {[%clk 0:02:57]} 3. d4 {[%clk 0:02:58]}  cxd4 {[%clk 0:02:57]} 4. Nxd4 {[%clk 0:02:59]}  Nf6 {[%clk 0:02:57]} 5. Nc3 {[%clk 0:02:59]}  Nc6 {[%clk 0:02:57]} 6. Be2 {[%clk 0:02:51]}  Bc5 {[%clk 0:02:39]} 7. Nxc6 {[%clk 0:02:40]}  bxc6 {[%clk 0:02:15]} 8. e5 {[%clk 0:02:36]}  Nd5 {[%clk 0:02:15]} 9. Ne4 {[%clk 0:02:35]}  Qb6 {[%clk 0:02:16]} 10. O-O {[%clk 0:02:25]}  O-O {[%clk 0:02:14]} 11. c4 {[%clk 0:02:22]}  Ne7 {[%clk 0:02:14]} 12. b3 {[%clk 0:02:00]}  Bd4 {[%clk 0:02:13]} 13. Rb1 {[%clk 0:01:58]}  Bxe5 {[%clk 0:02:12]} 14. Be3 {[%clk 0:01:49]}  Qc7 {[%clk 0:02:11]} 15. f4 {[%clk 0:01:45]}  d5 {[%clk 0:02:01]} 16. fxe5 {[%clk 0:01:35]}  dxe4 {[%clk 0:02:00]} 17. Bc5 {[%clk 0:01:33]}  Nf5 {[%clk 0:01:25]} 18. g4 {[%clk 0:01:17]}  Rd8 {[%clk 0:01:05]} 19. Qc2 {[%clk 0:00:46]}  Qxe5 {[%clk 0:01:04]} 20. Ba3 {[%clk 0:00:27]}  Ne3 {[%clk 0:01:01]} 21. Qc1 {[%clk 0:00:20]}  Nxf1 {[%clk 0:01:00]} 22. Qxf1 {[%clk 0:00:21]}  Bb7 {[%clk 0:00:51]} 23. c5 {[%clk 0:00:16]}  Rd2 {[%clk 0:00:49]} 24. Qf2 {[%clk 0:00:15]} 0-1


[Site "https://www.chess.com"]

[Event "Titled Tuesday Blitz February 14 Late 2023"]
[White "Fajdetic, Hrvoje"]
[Black "Bayo Milagro, Alvaro"]
[WhiteFideId "14501945"]
[BlackFideId "22275240"]
[WhiteElo "2151"]
[BlackElo "2287"]
[Result "1-0"]
[Round "03"]
[TimeControl "180+2"]
[Date "2023.02.14"]
[WhiteClock "0:01:08"]
[BlackClock "0:01:05"]

1. d4 {[%clk 0:02:59]}  Nf6 {[%clk 0:02:59]} 2. Bf4 {[%clk 0:02:57]}  b6 {[%clk 0:02:55]} 3. Nc3 {[%clk 0:02:56]}  Bb7 {[%clk 0:02:54]} 4. Qd3 {[%clk 0:02:57]}  e6 {[%clk 0:02:50]} 5. e4 {[%clk 0:02:56]}  Bb4 {[%clk 0:02:49]} 6. e5 {[%clk 0:02:49]}  Ne4 {[%clk 0:02:42]} 7. Ne2 {[%clk 0:02:40]}  c5 {[%clk 0:02:33]} 8. a3 {[%clk 0:02:37]}  Bxc3+ {[%clk 0:02:32]} 9. Nxc3 {[%clk 0:02:35]}  Nxc3 {[%clk 0:02:32]} 10. bxc3 {[%clk 0:02:29]}  Nc6 {[%clk 0:02:08]} 11. Qg3 {[%clk 0:02:18]}  O-O {[%clk 0:01:52]} 12. Bh6 {[%clk 0:02:13]}  g6 {[%clk 0:01:51]} 13. Bxf8 {[%clk 0:02:12]}  Qxf8 {[%clk 0:01:52]} 14. Rd1 {[%clk 0:02:09]}  Rc8 {[%clk 0:01:48]} 15. h4 {[%clk 0:02:07]}  Ne7 {[%clk 0:01:44]} 16. Bd3 {[%clk 0:02:03]}  Nd5 {[%clk 0:01:36]} 17. h5 {[%clk 0:02:01]}  Qh6 {[%clk 0:01:33]} 18. Rh4 {[%clk 0:01:50]}  Qg7 {[%clk 0:01:27]} 19. hxg6 {[%clk 0:01:26]}  hxg6 {[%clk 0:01:27]} 20. Kd2 {[%clk 0:01:16]}  Kf8 {[%clk 0:01:14]} 21. Rdh1 {[%clk 0:01:08]}  g5 {[%clk 0:01:05]} 1-0


[Site "https://www.chess.com"]

[Event "Titled Tuesday Blitz February 14 Late 2023"]
[White "Aldokhin, Ivan"]
[Black "Chabris, Christopher"]
[WhiteFideId "24115720"]
[BlackFideId "2005263"]
[WhiteElo "2413"]
[BlackElo "2053"]
[Result "1-0"]
[Round "03"]
[TimeControl "180+2"]
[Date "2023.02.14"]
[WhiteClock "0:00:20"]
[BlackClock "0:00:01"]

1. e4 {[%clk 0:03:00]}  c5 {[%clk 0:02:58]} 2. Nf3 {[%clk 0:03:01]}  d6 {[%clk 0:02:58]} 3. d4 {[%clk 0:03:02]}  cxd4 {[%clk 0:02:59]} 4. Nxd4 {[%clk 0:03:02]}  Nf6 {[%clk 0:02:59]} 5. Nc3 {[%clk 0:03:03]}  a6 {[%clk 0:02:59]} 6. Bc4 {[%clk 0:03:03]}  e6 {[%clk 0:02:58]} 7. Bb3 {[%clk 0:03:03]}  Nbd7 {[%clk 0:02:58]} 8. O-O {[%clk 0:03:03]}  Nc5 {[%clk 0:02:58]} 9. Qf3 {[%clk 0:03:03]}  Be7 {[%clk 0:02:55]} 10. Re1 {[%clk 0:03:04]}  O-O {[%clk 0:02:47]} 11. Qg3 {[%clk 0:03:04]}  Kh8 {[%clk 0:02:39]} 12. Bg5 {[%clk 0:02:55]}  Nxb3 {[%clk 0:02:24]} 13. axb3 {[%clk 0:02:54]}  Bd7 {[%clk 0:02:13]} 14. Rad1 {[%clk 0:02:52]}  b5 {[%clk 0:02:08]} 15. e5 {[%clk 0:02:40]}  dxe5 {[%clk 0:01:52]} 16. Nc6 {[%clk 0:02:37]}  Bxc6 {[%clk 0:01:38]} 17. Rxd8 {[%clk 0:02:38]}  Raxd8 {[%clk 0:01:32]} 18. Qxe5 {[%clk 0:02:38]}  h6 {[%clk 0:01:23]} 19. Qc7 {[%clk 0:02:29]}  hxg5 {[%clk 0:01:12]} 20. Qxc6 {[%clk 0:02:15]}  b4 {[%clk 0:00:43]} 21. Ne4 {[%clk 0:01:50]}  g4 {[%clk 0:00:25]} 22. Ng5 {[%clk 0:01:24]}  Rd5 {[%clk 0:00:20]} 23. h4 {[%clk 0:01:17]}  g3 {[%clk 0:00:13]} 24. Qc4 {[%clk 0:00:44]}  gxf2+ {[%clk 0:00:12]} 25. Kxf2 {[%clk 0:00:43]}  Bc5+ {[%clk 0:00:11]} 26. Kg3 {[%clk 0:00:41]}  Bd6+ {[%clk 0:00:10]} 27. Kh3 {[%clk 0:00:40]}  Rf5 {[%clk 0:00:09]} 28. Rxe6 {[%clk 0:00:28]}  fxe6 {[%clk 0:00:07]} 29. Qxe6 {[%clk 0:00:28]}  Ne4 {[%clk 0:00:06]} 30. Qxe4 {[%clk 0:00:25]}  g6 {[%clk 0:00:01]} 31. Ne6 {[%clk 0:00:20]}  Re8 {[%clk 0:00:01]} 32. Qd4+ {[%clk 0:00:20]} 1-0


[Site "https://www.chess.com"]

[Event "Titled Tuesday Blitz February 14 Late 2023"]
[White "Machidon, Cristi"]
[Black "Sliwicki, Damian"]
[WhiteFideId "13904590"]
[BlackFideId "1127128"]
[WhiteElo "2301"]
[BlackElo "2158"]
[Result "0-1"]
[Round "03"]
[TimeControl "180+2"]
[Date "2023.02.14"]
[WhiteClock "0:00:02"]
[BlackClock "0:00:16"]

1. d4 {[%clk 0:03:00]}  Nf6 {[%clk 0:02:58]} 2. c4 {[%clk 0:03:00]}  e6 {[%clk 0:02:59]} 3. Nf3 {[%clk 0:03:00]}  Bb4+ {[%clk 0:02:58]} 4. Bd2 {[%clk 0:02:59]}  Qe7 {[%clk 0:02:58]} 5. e3 {[%clk 0:02:58]}  O-O {[%clk 0:02:58]} 6. Bd3 {[%clk 0:02:53]}  Bxd2+ {[%clk 0:02:56]} 7. Qxd2 {[%clk 0:02:54]}  d6 {[%clk 0:02:57]} 8. Nc3 {[%clk 0:02:53]}  e5 {[%clk 0:02:57]} 9. O-O {[%clk 0:02:54]}  e4 {[%clk 0:02:55]} 10. Bc2 {[%clk 0:02:41]}  exf3 {[%clk 0:02:55]} 11. gxf3 {[%clk 0:02:42]}  Bh3 {[%clk 0:02:51]} 12. Rfe1 {[%clk 0:02:41]}  Nh5 {[%clk 0:02:29]} 13. e4 {[%clk 0:02:41]}  Qh4 {[%clk 0:02:27]} 14. Kh1 {[%clk 0:02:32]}  Nd7 {[%clk 0:02:01]} 15. Rg1 {[%clk 0:02:23]}  c5 {[%clk 0:02:00]} 16. Nd5 {[%clk 0:01:49]}  cxd4 {[%clk 0:01:51]} 17. Qxd4 {[%clk 0:01:47]}  Ne5 {[%clk 0:01:51]} 18. Qe3 {[%clk 0:00:59]}  f6 {[%clk 0:01:37]} 19. Rad1 {[%clk 0:00:42]}  Kh8 {[%clk 0:01:17]} 20. b3 {[%clk 0:00:42]}  Rad8 {[%clk 0:01:09]} 21. Rd2 {[%clk 0:00:42]}  Be6 {[%clk 0:01:00]} 22. f4 {[%clk 0:00:36]}  Ng4 {[%clk 0:00:54]} 23. Rxg4 {[%clk 0:00:30]}  Bxg4 {[%clk 0:00:55]} 24. f3 {[%clk 0:00:20]}  Bxf3+ {[%clk 0:00:42]} 25. Qxf3 {[%clk 0:00:11]}  Qe1+ {[%clk 0:00:42]} 26. Kg2 {[%clk 0:00:10]}  Qxd2+ {[%clk 0:00:42]} 27. Qf2 {[%clk 0:00:11]}  Qxf2+ {[%clk 0:00:40]} 28. Kxf2 {[%clk 0:00:12]}  g5 {[%clk 0:00:37]} 29. f5 {[%clk 0:00:11]}  Nf4 {[%clk 0:00:36]} 30. Ne3 {[%clk 0:00:08]}  h5 {[%clk 0:00:32]} 31. b4 {[%clk 0:00:07]}  h4 {[%clk 0:00:32]} 32. Kf3 {[%clk 0:00:07]}  Rc8 {[%clk 0:00:32]} 33. Bb3 {[%clk 0:00:07]}  Rfe8 {[%clk 0:00:30]} 34. Ng4 {[%clk 0:00:07]}  Kg7 {[%clk 0:00:29]} 35. a3 {[%clk 0:00:06]}  b5 {[%clk 0:00:30]} 36. Ne3 {[%clk 0:00:04]}  a6 {[%clk 0:00:26]} 37. a4 {[%clk 0:00:03]}  bxa4 {[%clk 0:00:22]} 38. Bxa4 {[%clk 0:00:03]}  Re7 {[%clk 0:00:22]} 39. b5 {[%clk 0:00:02]}  axb5 {[%clk 0:00:22]} 40. Bxb5 {[%clk 0:00:03]}  Rb7 {[%clk 0:00:21]} 41. Nd1 {[%clk 0:00:02]}  Rcb8 {[%clk 0:00:20]} 42. Nc3 {[%clk 0:00:02]}  Ra8 {[%clk 0:00:21]} 43. Ke3 {[%clk 0:00:02]}  Ra3 {[%clk 0:00:20]} 44. Kd4 {[%clk 0:00:03]}  Rc7 {[%clk 0:00:19]} 45. Nd1 {[%clk 0:00:03]}  Ne2+ {[%clk 0:00:16]} 46. Kd5 {[%clk 0:00:02]}  Rd3+ {[%clk 0:00:16]} 47. Ke6 {[%clk 0:00:02]}  Nf4# {[%clk 0:00:16]} 0-1


[Site "https://www.chess.com"]

[Event "Titled Tuesday Blitz February 14 Late 2023"]
[White "Kanyamarala, Tarun"]
[Black "Rose, Felix"]
[WhiteFideId "45004714"]
[BlackFideId "5105722"]
[WhiteElo "2342"]
[BlackElo "2091"]
[Result "1-0"]
[Round "03"]
[TimeControl "180+2"]
[Date "2023.02.14"]
[WhiteClock "0:00:16"]
[BlackClock "0:00:22"]

1. d4 {[%clk 0:03:00]}  e6 {[%clk 0:02:59]} 2. Nf3 {[%clk 0:02:59]}  d5 {[%clk 0:02:59]} 3. Bf4 {[%clk 0:02:59]}  Nf6 {[%clk 0:02:58]} 4. e3 {[%clk 0:02:58]}  Bd6 {[%clk 0:02:59]} 5. Nbd2 {[%clk 0:02:56]}  O-O {[%clk 0:02:59]} 6. Ne5 {[%clk 0:02:53]}  c5 {[%clk 0:02:57]} 7. c3 {[%clk 0:02:52]}  b6 {[%clk 0:02:54]} 8. Bd3 {[%clk 0:02:50]}  Bb7 {[%clk 0:02:55]} 9. Qf3 {[%clk 0:02:46]}  Nc6 {[%clk 0:02:55]} 10. Qh3 {[%clk 0:02:43]}  Ne7 {[%clk 0:02:28]} 11. Ndf3 {[%clk 0:02:21]}  Ne4 {[%clk 0:02:22]} 12. Bxe4 {[%clk 0:02:18]}  dxe4 {[%clk 0:02:22]} 13. Ng5 {[%clk 0:02:18]}  h6 {[%clk 0:02:17]} 14. Nexf7 {[%clk 0:01:52]}  Rxf7 {[%clk 0:02:15]} 15. Nxf7 {[%clk 0:01:51]}  Kxf7 {[%clk 0:02:07]} 16. O-O-O {[%clk 0:01:42]}  Bxf4 {[%clk 0:02:03]} 17. exf4 {[%clk 0:01:42]}  cxd4 {[%clk 0:02:03]} 18. Rxd4 {[%clk 0:01:41]}  Qc7 {[%clk 0:02:02]} 19. Rhd1 {[%clk 0:01:36]}  Bd5 {[%clk 0:01:59]} 20. f5 {[%clk 0:01:25]}  Qf4+ {[%clk 0:01:41]} 21. Kb1 {[%clk 0:01:24]}  Qxf5 {[%clk 0:01:40]} 22. Qg3 {[%clk 0:01:20]}  Rc8 {[%clk 0:01:35]} 23. Ka1 {[%clk 0:01:11]}  Kg8 {[%clk 0:01:34]} 24. a3 {[%clk 0:01:05]}  a5 {[%clk 0:01:27]} 25. Qd6 {[%clk 0:01:04]}  Nc6 {[%clk 0:01:20]} 26. R4d2 {[%clk 0:00:57]}  Qf8 {[%clk 0:01:12]} 27. Qd7 {[%clk 0:00:48]}  a4 {[%clk 0:01:09]} 28. c4 {[%clk 0:00:44]}  Na5 {[%clk 0:01:01]} 29. cxd5 {[%clk 0:00:42]}  Nb3+ {[%clk 0:01:01]} 30. Ka2 {[%clk 0:00:41]}  Nxd2 {[%clk 0:00:57]} 31. Qxe6+ {[%clk 0:00:40]}  Kh8 {[%clk 0:00:53]} 32. Rxd2 {[%clk 0:00:40]}  Re8 {[%clk 0:00:52]} 33. Qxb6 {[%clk 0:00:35]}  Rb8 {[%clk 0:00:51]} 34. Qd4 {[%clk 0:00:30]}  Qe8 {[%clk 0:00:39]} 35. d6 {[%clk 0:00:26]}  Qb5 {[%clk 0:00:39]} 36. Qd5 {[%clk 0:00:21]}  Qb3+ {[%clk 0:00:30]} 37. Qxb3 {[%clk 0:00:21]}  axb3+ {[%clk 0:00:30]} 38. Kb1 {[%clk 0:00:21]}  e3 {[%clk 0:00:30]} 39. fxe3 {[%clk 0:00:20]}  Rf8 {[%clk 0:00:31]} 40. Rd1 {[%clk 0:00:19]}  Kg8 {[%clk 0:00:29]} 41. d7 {[%clk 0:00:20]}  Rd8 {[%clk 0:00:29]} 42. a4 {[%clk 0:00:19]}  Kf7 {[%clk 0:00:29]} 43. a5 {[%clk 0:00:19]}  Ke7 {[%clk 0:00:29]} 44. a6 {[%clk 0:00:20]}  g5 {[%clk 0:00:22]} 45. g4 {[%clk 0:00:17]}  Ke6 {[%clk 0:00:21]} 46. a7 {[%clk 0:00:16]}  Ke7 {[%clk 0:00:22]} 47. e4 {[%clk 0:00:16]} 1-0


[Site "https://www.chess.com"]